[Event "Live Chess"]
[Site "Chess.com"]
[Date "2024.06.01"]
[Round "-"]
[White "rakibsachchu"]
[Black "jimwad"]
[Result "1-0"]
[WhiteElo "1584"]
[BlackElo "1249"]
[TimeControl "300"]
[EndTime "11:19:16 PDT"]
[Termination "rakibsachchu won by resignation"]

1. e4 {[%clk 0:04:57.9]} 1... e5 {[%clk 0:04:58.8]} 2. Nf3 {[%clk 0:04:47.2]}
2... Nc6 {[%clk 0:04:57.2]} 3. Bb5 {[%clk 0:04:45.1]} 3... Nf6 {[%clk
0:04:55.6]} 4. O-O {[%clk 0:04:42.1]} 4... d6 {[%clk 0:04:53.3]} 5. d4 {[%clk
0:04:40]} 5... Bd7 {[%clk 0:04:48.6]} 6. Nc3 {[%clk 0:04:33.4]} 6... exd4 {[%clk
0:04:33.1]} 7. Nxd4 {[%clk 0:04:28.6]} 7... Nxd4 {[%clk 0:04:27.2]} 8. Qxd4
{[%clk 0:04:25.8]} 8... Bxb5 {[%clk 0:04:23.4]} 9. Nxb5 {[%clk 0:04:23.2]} 9...
c6 {[%clk 0:04:17.6]} 10. Nc3 {[%clk 0:04:20.6]} 10... Be7 {[%clk 0:04:14.2]}
11. Bg5 {[%clk 0:04:18.6]} 11... O-O {[%clk 0:04:12.4]} 12. Rad1 {[%clk
0:04:11.2]} 12... d5 {[%clk 0:04:09.4]} 13. exd5 {[%clk 0:03:56.2]} 13... Nxd5
{[%clk 0:04:04.8]} 14. Bxe7 {[%clk 0:03:52.8]} 14... Nxe7 {[%clk 0:04:03.2]} 15.
Qg4 {[%clk 0:03:44.3]} 15... Qc7 {[%clk 0:03:56.1]} 16. Rd7 {[%clk 0:03:41.9]}
16... Qe5 {[%clk 0:03:52.4]} 17. Rxb7 {[%clk 0:03:29.6]} 17... Ng6 {[%clk
0:03:43.9]} 18. Rd7 {[%clk 0:03:08.5]} 18... Rfb8 {[%clk 0:03:33.3]} 19. Rfd1
{[%clk 0:03:00.9]} 19... Rxb2 {[%clk 0:03:29]} 20. Ne4 {[%clk 0:02:14.1]} 20...
Rxc2 {[%clk 0:03:11.3]} 21. h4 {[%clk 0:01:59.6]} 21... Qf4 {[%clk 0:02:07.8]}
22. Rd8+ {[%clk 0:01:23.3]} 1-0

[Event "Live Chess"]
[Site "Chess.com"]
[Date "2024.06.01"]
[Round "-"]
[White "Richardallis"]
[Black "Yarigo"]
[Result "1/2-1/2"]
[WhiteElo "2053"]
[BlackElo "2335"]
[TimeControl "300"]
[EndTime "11:19:18 PDT"]
[Termination "Game drawn - timeout vs insufficient material"]

1. d4 {[%clk 0:04:56.2]} 1... d5 {[%clk 0:04:56.7]} 2. Nf3 {[%clk 0:04:55.5]}
2... e6 {[%clk 0:04:54.9]} 3. Bg5 {[%clk 0:04:53.3]} 3... Be7 {[%clk 0:04:51.7]}
4. Bxe7 {[%clk 0:04:52.1]} 4... Qxe7 {[%clk 0:04:51.3]} 5. c3 {[%clk 0:04:51.5]}
5... Nf6 {[%clk 0:04:50]} 6. Nbd2 {[%clk 0:04:50.2]} 6... Nbd7 {[%clk
0:04:49.3]} 7. Qc2 {[%clk 0:04:46.3]} 7... e5 {[%clk 0:04:47.6]} 8. dxe5 {[%clk
0:04:42.1]} 8... Nxe5 {[%clk 0:04:47]} 9. Nxe5 {[%clk 0:04:39.2]} 9... Qxe5
{[%clk 0:04:45.4]} 10. e3 {[%clk 0:04:38.1]} 10... Bd7 {[%clk 0:04:41.2]} 11.
Nf3 {[%clk 0:04:36.4]} 11... Qe7 {[%clk 0:04:38.5]} 12. O-O-O {[%clk 0:04:35.3]}
12... O-O-O {[%clk 0:04:36]} 13. Bd3 {[%clk 0:04:30.7]} 13... g6 {[%clk
0:04:33]} 14. Nd4 {[%clk 0:04:28.7]} 14... Rhe8 {[%clk 0:04:14.6]} 15. Rhe1
{[%clk 0:04:25.1]} 15... Kb8 {[%clk 0:04:11.5]} 16. f3 {[%clk 0:04:17.4]} 16...
c5 {[%clk 0:04:08]} 17. Ne2 {[%clk 0:04:06.9]} 17... Bc6 {[%clk 0:04:04.2]} 18.
Ng3 {[%clk 0:04:02.2]} 18... h5 {[%clk 0:04:00.3]} 19. h3 {[%clk 0:03:52.6]}
19... Nd7 {[%clk 0:03:48.7]} 20. Nh1 {[%clk 0:03:48.4]} 20... Ne5 {[%clk
0:03:34.7]} 21. Bf1 {[%clk 0:03:46.8]} 21... Rd6 {[%clk 0:03:05.7]} 22. Nf2
{[%clk 0:03:44.9]} 22... Red8 {[%clk 0:03:01.1]} 23. e4 {[%clk 0:03:38.5]} 23...
Qg5+ {[%clk 0:02:57.2]} 24. Kb1 {[%clk 0:03:35.3]} 24... dxe4 {[%clk 0:02:56]}
25. Nxe4 {[%clk 0:03:28.5]} 25... Rxd1+ {[%clk 0:02:49.7]} 26. Rxd1 {[%clk
0:03:27.5]} 26... Rxd1+ {[%clk 0:02:48.1]} 27. Qxd1 {[%clk 0:03:26]} 27... Bxe4+
{[%clk 0:02:46.9]} 28. fxe4 {[%clk 0:03:23.1]} 28... Qf6 {[%clk 0:02:34.3]} 29.
Bb5 {[%clk 0:03:16.2]} 29... Kc7 {[%clk 0:02:32.4]} 30. Qd5 {[%clk 0:03:14]}
30... Qd6 {[%clk 0:02:24.9]} 31. Qb3 {[%clk 0:03:04.8]} 31... a6 {[%clk
0:02:15]} 32. Be2 {[%clk 0:02:56.4]} 32... Qd2 {[%clk 0:02:12.5]} 33. Qc2 {[%clk
0:02:54.9]} 33... Qe1+ {[%clk 0:01:57.9]} 34. Qd1 {[%clk 0:02:53.2]} 34... Qxd1+
{[%clk 0:01:55.4]} 35. Bxd1 {[%clk 0:02:51.4]} 35... Kd6 {[%clk 0:01:54.1]} 36.
Be2 {[%clk 0:02:49.3]} 36... Nd7 {[%clk 0:01:39.6]} 37. Bc4 {[%clk 0:02:18.3]}
37... f6 {[%clk 0:01:36.2]} 38. Kc2 {[%clk 0:02:15]} 38... Ke5 {[%clk
0:01:27.9]} 39. Bd5 {[%clk 0:02:09.3]} 39... b6 {[%clk 0:01:20.3]} 40. Bf7
{[%clk 0:02:07.6]} 40... Nf8 {[%clk 0:01:07.7]} 41. Kd2 {[%clk 0:02:06.1]} 41...
Kxe4 {[%clk 0:01:04.2]} 42. Ke2 {[%clk 0:02:01]} 42... h4 {[%clk 0:01:00.2]} 43.
a4 {[%clk 0:01:58.5]} 43... a5 {[%clk 0:00:56.9]} 44. Be8 {[%clk 0:01:48.2]}
44... g5 {[%clk 0:00:54.5]} 45. Bc6+ {[%clk 0:01:43.3]} 45... Ke5 {[%clk
0:00:53.3]} 46. Ke3 {[%clk 0:01:41.9]} 46... Ne6 {[%clk 0:00:51.8]} 47. Ba8
{[%clk 0:01:37.7]} 47... c4 {[%clk 0:00:44.8]} 48. Bc6 {[%clk 0:01:30.6]} 48...
Nc5 {[%clk 0:00:38.3]} 49. Be8 {[%clk 0:01:20.9]} 49... f5 {[%clk 0:00:32.4]}
50. Bf7 {[%clk 0:01:18.8]} 50... Nxa4 {[%clk 0:00:29]} 51. Bxc4 {[%clk
0:01:11.1]} 51... Nxb2 {[%clk 0:00:27.6]} 52. Bb5 {[%clk 0:01:08.4]} 52... a4
{[%clk 0:00:26.4]} 53. Kd2 {[%clk 0:01:07.5]} 53... a3 {[%clk 0:00:25.4]} 54.
Kc2 {[%clk 0:01:06.5]} 54... g4 {[%clk 0:00:22.4]} 55. Kb3 {[%clk 0:01:04.1]}
55... Nd1 {[%clk 0:00:17.5]} 56. Bc6 {[%clk 0:00:49.7]} 56... a2 {[%clk
0:00:13.9]} 57. Kxa2 {[%clk 0:00:46.4]} 57... Nxc3+ {[%clk 0:00:13.4]} 58. Kb3
{[%clk 0:00:45.1]} 58... Ne2 {[%clk 0:00:12.8]} 59. hxg4 {[%clk 0:00:40.8]}
59... fxg4 {[%clk 0:00:10.9]} 60. Kb4 {[%clk 0:00:35.4]} 60... Kf4 {[%clk
0:00:09.6]} 61. Kb5 {[%clk 0:00:32.3]} 61... Nd4+ {[%clk 0:00:07.7]} 62. Kxb6
{[%clk 0:00:30.7]} 62... Nxc6 {[%clk 0:00:07.3]} 63. Kxc6 {[%clk 0:00:30.2]}
63... Kg3 {[%clk 0:00:06.3]} 64. Kd5 {[%clk 0:00:30]} 64... Kxg2 {[%clk
0:00:06]} 65. Ke4 {[%clk 0:00:29.8]} 65... h3 {[%clk 0:00:05.1]} 66. Kf4 {[%clk
0:00:29.6]} 66... h2 {[%clk 0:00:04.8]} 67. Kxg4 {[%clk 0:00:29.5]} 67... h1=Q
{[%clk 0:00:04.3]} 68. Kg5 {[%clk 0:00:27.8]} 68... Qe1 {[%clk 0:00:03.7]} 69.
Kf4 {[%clk 0:00:26.6]} 69... Qe6 {[%clk 0:00:01.3]} 70. Kg5 {[%clk 0:00:25.4]}
70... Kg3 {[%clk 0:00:00.9]} 71. Kh5 {[%clk 0:00:24.1]} 71... Kf4 {[%clk
0:00:00.4]} 72. Kh4 {[%clk 0:00:22]} 1/2-1/2

[Event "Live Chess"]
[Site "Chess.com"]
[Date "2024.06.01"]
[Round "-"]
[White "AnotherOneBadPlayer"]
[Black "gmnorfolk"]
[Result "0-1"]
[WhiteElo "2198"]
[BlackElo "2124"]
[TimeControl "300"]
[EndTime "11:19:33 PDT"]
[Termination "gmnorfolk won on time"]

1. Nf3 {[%clk 0:04:56.7]} 1... Nf6 {[%clk 0:04:57.9]} 2. b3 {[%clk 0:04:55.5]}
2... g6 {[%clk 0:04:56]} 3. Bb2 {[%clk 0:04:54.1]} 3... Bg7 {[%clk 0:04:55.5]}
4. e3 {[%clk 0:04:50.1]} 4... O-O {[%clk 0:04:54.3]} 5. Be2 {[%clk 0:04:48.2]}
5... d6 {[%clk 0:04:53.1]} 6. O-O {[%clk 0:04:46.6]} 6... c5 {[%clk 0:04:52.7]}
7. d4 {[%clk 0:04:42.5]} 7... Nc6 {[%clk 0:04:52.6]} 8. d5 {[%clk 0:04:28.4]}
8... Nb4 {[%clk 0:04:47.6]} 9. c4 {[%clk 0:04:24]} 9... Bf5 {[%clk 0:04:47.2]}
10. a3 {[%clk 0:04:15.2]} 10... Na6 {[%clk 0:04:39.2]} 11. Nbd2 {[%clk
0:04:09.2]} 11... Rb8 {[%clk 0:04:18.4]} 12. Nh4 {[%clk 0:03:50]} 12... Bd7
{[%clk 0:04:11.8]} 13. e4 {[%clk 0:03:43.9]} 13... Nc7 {[%clk 0:04:07.1]} 14. a4
{[%clk 0:03:22.9]} 14... a6 {[%clk 0:04:04.2]} 15. f4 {[%clk 0:03:17.9]} 15...
b5 {[%clk 0:03:57.1]} 16. axb5 {[%clk 0:03:08.6]} 16... axb5 {[%clk 0:03:55.5]}
17. e5 {[%clk 0:02:42.6]} 17... Nfe8 {[%clk 0:03:51.3]} 18. Qc2 {[%clk
0:02:27.3]} 18... e6 {[%clk 0:03:49.4]} 19. Nhf3 {[%clk 0:01:57]} 19... bxc4
{[%clk 0:03:46.5]} 20. dxe6 {[%clk 0:01:46.6]} 20... Bxe6 {[%clk 0:03:34.5]} 21.
Bxc4 {[%clk 0:01:39.4]} 21... d5 {[%clk 0:03:26]} 22. Be2 {[%clk 0:01:27.7]}
22... c4 {[%clk 0:03:17.3]} 23. Ba3 {[%clk 0:01:19.6]} 23... cxb3 {[%clk
0:03:05.8]} 24. Nxb3 {[%clk 0:01:16.8]} 24... Nb5 {[%clk 0:03:04.7]} 25. Bxf8
{[%clk 0:01:13.4]} 25... Bxf8 {[%clk 0:03:02.8]} 26. Kh1 {[%clk 0:01:08.4]}
26... Qb6 {[%clk 0:02:53.5]} 27. Rfb1 {[%clk 0:00:56.9]} 27... Qe3 {[%clk
0:02:50.6]} 28. Bxb5 {[%clk 0:00:42.9]} 28... Rxb5 {[%clk 0:02:43.7]} 29. Ra8
{[%clk 0:00:38.3]} 29... Bf5 {[%clk 0:01:57.7]} 30. Qc6 {[%clk 0:00:33.4]} 30...
Rxb3 {[%clk 0:01:52]} 31. Rg1 {[%clk 0:00:28.8]} 31... Ra3 {[%clk 0:01:29.8]}
32. Rxa3 {[%clk 0:00:25.7]} 32... Qxa3 {[%clk 0:01:27.2]} 33. Qxe8 {[%clk
0:00:23.9]} 33... Be4 {[%clk 0:01:24.2]} 34. Ng5 {[%clk 0:00:22.4]} 34... Qa7
{[%clk 0:01:19]} 35. Qc8 {[%clk 0:00:20.3]} 35... Bf5 {[%clk 0:01:11.8]} 36. Qe8
{[%clk 0:00:17.5]} 36... h6 {[%clk 0:01:06.7]} 37. Nf3 {[%clk 0:00:15.4]} 37...
Kg7 {[%clk 0:01:05]} 38. Qd8 {[%clk 0:00:13.9]} 38... Be4 {[%clk 0:01:03.3]} 39.
Qf6+ {[%clk 0:00:12.8]} 39... Kg8 {[%clk 0:01:00.7]} 40. Nh4 {[%clk 0:00:11.9]}
40... Bc5 {[%clk 0:00:58.4]} 41. Rc1 {[%clk 0:00:08.3]} 41... Qa3 {[%clk
0:00:53.6]} 42. Qd8+ {[%clk 0:00:06.9]} 42... Kh7 {[%clk 0:00:48.8]} 43. Re1
{[%clk 0:00:06.1]} 43... Be7 {[%clk 0:00:45]} 44. Qc7 {[%clk 0:00:04]} 44... Qb4
{[%clk 0:00:38.8]} 45. Rg1 {[%clk 0:00:01]} 45... Kg7 {[%clk 0:00:34.2]} 0-1

[Event "Live Chess"]
[Site "Chess.com"]
[Date "2024.06.01"]
[Round "-"]
[White "OurKnightAtTheOpera"]
[Black "oscalik"]
[Result "1-0"]
[WhiteElo "2023"]
[BlackElo "2374"]
[TimeControl "300"]
[EndTime "11:19:43 PDT"]
[Termination "OurKnightAtTheOpera won by resignation"]

1. e4 {[%clk 0:04:59.9]} 1... c5 {[%clk 0:04:58.7]} 2. d4 {[%clk 0:04:56.8]}
2... cxd4 {[%clk 0:04:57.4]} 3. c3 {[%clk 0:04:56.4]} 3... Nf6 {[%clk
0:04:55.9]} 4. e5 {[%clk 0:04:55.5]} 4... Nd5 {[%clk 0:04:49.1]} 5. Qxd4 {[%clk
0:04:54.9]} 5... e6 {[%clk 0:04:46.7]} 6. Nf3 {[%clk 0:04:53.6]} 6... Nc6 {[%clk
0:04:44.4]} 7. Qe4 {[%clk 0:04:53.2]} 7... f5 {[%clk 0:04:43.5]} 8. exf6 {[%clk
0:04:44.5]} 8... Nxf6 {[%clk 0:04:42.2]} 9. Qc2 {[%clk 0:04:41.7]} 9... Bc5
{[%clk 0:04:40.1]} 10. Nbd2 {[%clk 0:04:39.8]} 10... d5 {[%clk 0:04:36.9]} 11.
Bd3 {[%clk 0:04:38.1]} 11... e5 {[%clk 0:04:34]} 12. Bb5 {[%clk 0:04:31.6]}
12... e4 {[%clk 0:04:28.4]} 13. Nd4 {[%clk 0:04:29.9]} 13... Bd7 {[%clk
0:04:27.2]} 14. O-O {[%clk 0:04:27.4]} 14... O-O {[%clk 0:04:25.6]} 15. Re1
{[%clk 0:04:26.6]} 15... Rc8 {[%clk 0:04:23.7]} 16. N2b3 {[%clk 0:04:25.7]}
16... Bb6 {[%clk 0:04:21.4]} 17. Bg5 {[%clk 0:04:17.1]} 17... Nxd4 {[%clk
0:04:17.1]} 18. Nxd4 {[%clk 0:04:06]} 18... Bxd4 {[%clk 0:04:15.7]} 19. Bxd7
{[%clk 0:04:00]} 19... Qxd7 {[%clk 0:04:14.6]} 20. Qb3 {[%clk 0:03:58]} 20...
Be5 {[%clk 0:04:06.6]} 21. Bxf6 {[%clk 0:03:54.7]} 21... Rxf6 {[%clk 0:04:04.7]}
22. Rxe4 {[%clk 0:03:53.2]} 22... Rcf8 {[%clk 0:04:00.4]} 23. Rxe5 {[%clk
0:03:47.1]} 23... Kh8 {[%clk 0:03:52]} 24. Qxd5 {[%clk 0:03:32.7]} 24... Qg4
{[%clk 0:03:47.3]} 25. f3 {[%clk 0:03:30.3]} 25... Rxf3 {[%clk 0:03:41.7]} 26.
Qxf3 {[%clk 0:03:27.3]} 26... Qc8 {[%clk 0:03:27.9]} 27. Qe3 {[%clk 0:03:18.1]}
27... h6 {[%clk 0:03:25.7]} 28. Re1 {[%clk 0:03:16.9]} 28... Qc4 {[%clk
0:03:24]} 29. Re8 {[%clk 0:03:14.5]} 29... Rxe8 {[%clk 0:03:22.9]} 30. Qxe8+
{[%clk 0:03:13.4]} 30... Kh7 {[%clk 0:03:22.8]} 31. Qe4+ {[%clk 0:03:13.1]} 1-0

[Event "Live Chess"]
[Site "Chess.com"]
[Date "2024.06.01"]
[Round "-"]
[White "Queensandpawns"]
[Black "GerardATHart"]
[Result "1-0"]
[WhiteElo "2444"]
[BlackElo "1414"]
[TimeControl "300"]
[EndTime "11:19:47 PDT"]
[Termination "Queensandpawns won by resignation"]

1. e4 {[%clk 0:04:59.3]} 1... e5 {[%clk 0:04:56.8]} 2. d4 {[%clk 0:04:58.5]}
2... exd4 {[%clk 0:04:50.4]} 3. c3 {[%clk 0:04:58.4]} 3... dxc3 {[%clk
0:04:42.3]} 4. Bc4 {[%clk 0:04:58]} 4... cxb2 {[%clk 0:04:40.5]} 5. Bxb2 {[%clk
0:04:57.9]} 5... Nf6 {[%clk 0:04:38]} 6. e5 {[%clk 0:04:56.4]} 6... Qe7 {[%clk
0:04:36.3]} 7. Kf1 {[%clk 0:04:54.9]} 7... Ne4 {[%clk 0:04:19.7]} 8. Qe2 {[%clk
0:04:50.7]} 8... Qb4 {[%clk 0:04:09.5]} 9. a3 {[%clk 0:04:42.2]} 9... Nd2+
{[%clk 0:03:53.9]} 10. Nxd2 {[%clk 0:04:18.8]} 10... Qxb2 {[%clk 0:03:52]} 11.
Rd1 {[%clk 0:04:13.8]} 11... Qxa3 {[%clk 0:03:41.9]} 12. Ngf3 {[%clk 0:04:05.7]}
12... Be7 {[%clk 0:03:38.2]} 13. Qe4 {[%clk 0:04:01.2]} 13... O-O {[%clk
0:03:34]} 14. h4 {[%clk 0:04:00]} 14... Nc6 {[%clk 0:03:22.9]} 15. Bd3 {[%clk
0:03:58.3]} 15... g6 {[%clk 0:03:20.7]} 16. h5 {[%clk 0:03:57.2]} 16... Nb4
{[%clk 0:03:12.9]} 17. Bb1 {[%clk 0:03:52.3]} 17... d6 {[%clk 0:03:08.5]} 18.
hxg6 {[%clk 0:03:50.9]} 18... fxg6 {[%clk 0:03:05.2]} 19. Rxh7 {[%clk
0:03:49.8]} 19... Bf5 {[%clk 0:03:00.3]} 20. Qc4+ {[%clk 0:03:40.4]} 20... Kxh7
{[%clk 0:02:56.8]} 21. Qxc7 {[%clk 0:03:35.3]} 21... Nc6 {[%clk 0:02:35.3]} 22.
Qxb7 {[%clk 0:03:09.1]} 22... Qc5 {[%clk 0:02:15.6]} 23. Ne4 {[%clk 0:03:04.5]}
23... Rab8 {[%clk 0:02:02.2]} 24. Nxc5 {[%clk 0:03:00.9]} 24... Rxb7 {[%clk
0:01:59.5]} 25. Nxb7 {[%clk 0:03:00.8]} 25... Rb8 {[%clk 0:01:51]} 26. Bxf5
{[%clk 0:02:57]} 26... gxf5 {[%clk 0:01:44.5]} 27. Nxd6 {[%clk 0:02:56.1]} 27...
Rd8 {[%clk 0:01:39.5]} 28. Ke2 {[%clk 0:02:42.5]} 28... Bxd6 {[%clk 0:01:36.8]}
29. exd6 {[%clk 0:02:41.3]} 29... Kg7 {[%clk 0:01:29.2]} 30. Ng5 {[%clk
0:02:31]} 30... Kf6 {[%clk 0:01:26.9]} 31. f4 {[%clk 0:02:30.3]} 31... Ne5
{[%clk 0:01:20.8]} 32. Nh7+ {[%clk 0:02:27.2]} 32... Kg7 {[%clk 0:01:16.6]} 33.
fxe5 {[%clk 0:02:27.1]} 33... Kxh7 {[%clk 0:01:15]} 34. e6 {[%clk 0:02:26.6]}
34... Kg7 {[%clk 0:01:13.3]} 35. e7 {[%clk 0:02:25.3]} 1-0

[Event "Live Chess"]
[Site "Chess.com"]
[Date "2024.06.01"]
[Round "-"]
[White "koekoekoe"]
[Black "Kyrylo7770"]
[Result "1-0"]
[WhiteElo "2089"]
[BlackElo "1682"]
[TimeControl "300"]
[EndTime "11:20:29 PDT"]
[Termination "koekoekoe won by checkmate"]

1. d4 {[%clk 0:04:58.9]} 1... d5 {[%clk 0:04:58.9]} 2. Bf4 {[%clk 0:04:58.5]}
2... Bg4 {[%clk 0:04:58.4]} 3. Nf3 {[%clk 0:04:57.3]} 3... e6 {[%clk 0:04:57.8]}
4. e3 {[%clk 0:04:56.7]} 4... Bd6 {[%clk 0:04:57.2]} 5. Bg3 {[%clk 0:04:54.8]}
5... Nf6 {[%clk 0:04:55.7]} 6. c4 {[%clk 0:04:53.6]} 6... h5 {[%clk 0:04:54.9]}
7. c5 {[%clk 0:04:50.3]} 7... Bxg3 {[%clk 0:04:53.6]} 8. hxg3 {[%clk 0:04:50.2]}
8... Nc6 {[%clk 0:04:52.8]} 9. Nc3 {[%clk 0:04:49]} 9... Ne4 {[%clk 0:04:48.3]}
10. Rc1 {[%clk 0:04:42.6]} 10... Nb4 {[%clk 0:04:46.5]} 11. a3 {[%clk
0:04:36.1]} 11... Nc6 {[%clk 0:04:44.7]} 12. Be2 {[%clk 0:04:32.2]} 12... Bf5
{[%clk 0:04:40.7]} 13. Nxe4 {[%clk 0:04:20.8]} 13... Bxe4 {[%clk 0:04:38.4]} 14.
Bd3 {[%clk 0:04:20]} 14... Bxf3 {[%clk 0:04:36.7]} 15. Qxf3 {[%clk 0:04:18.1]}
15... Qe7 {[%clk 0:04:36.3]} 16. Rxh5 {[%clk 0:04:15.7]} 16... Rxh5 {[%clk
0:04:34.6]} 17. Qxh5 {[%clk 0:04:15.6]} 17... O-O-O {[%clk 0:04:34.3]} 18. Qh7
{[%clk 0:04:08.2]} 18... g6 {[%clk 0:04:32.6]} 19. b4 {[%clk 0:04:03]} 19... Qf6
{[%clk 0:04:28.9]} 20. Qh4 {[%clk 0:03:55.9]} 20... g5 {[%clk 0:04:26.6]} 21.
Qg4 {[%clk 0:03:45.6]} 21... Rh8 {[%clk 0:04:25.8]} 22. Ke2 {[%clk 0:03:42.5]}
22... Rh2 {[%clk 0:04:22.9]} 23. Qf3 {[%clk 0:03:41.8]} 23... Qe7 {[%clk
0:04:18]} 24. g4 {[%clk 0:03:36.5]} 24... Nd8 {[%clk 0:03:56.4]} 25. g3 {[%clk
0:03:31.8]} 25... Qd7 {[%clk 0:03:55]} 26. Rh1 {[%clk 0:03:30.5]} 26... Rxh1
{[%clk 0:03:50.7]} 27. Qxh1 {[%clk 0:03:30.4]} 27... Qa4 {[%clk 0:03:49.5]} 28.
Qc1 {[%clk 0:03:14.3]} 28... Qb3 {[%clk 0:03:46.5]} 29. Kd2 {[%clk 0:02:59.9]}
29... Qa2+ {[%clk 0:03:42]} 30. Bc2 {[%clk 0:02:49.4]} 30... Nc6 {[%clk
0:03:34.7]} 31. Kc3 {[%clk 0:02:42.1]} 31... Qc4+ {[%clk 0:03:33.4]} 32. Kd2
{[%clk 0:02:40.5]} 32... Qa2 {[%clk 0:03:32.1]} 33. f4 {[%clk 0:02:06.5]} 33...
gxf4 {[%clk 0:03:27.1]} 34. gxf4 {[%clk 0:02:06.4]} 34... a5 {[%clk 0:03:23.7]}
35. b5 {[%clk 0:02:00.9]} 35... Na7 {[%clk 0:03:22.2]} 36. a4 {[%clk 0:02:00]}
36... c6 {[%clk 0:03:20.4]} 37. b6 {[%clk 0:01:56.8]} 37... Nb5 {[%clk
0:03:18.7]} 38. axb5 {[%clk 0:01:56.3]} 38... cxb5 {[%clk 0:03:17.9]} 39. Qb1
{[%clk 0:01:48.4]} 39... Qc4 {[%clk 0:03:16.4]} 40. Bd3 {[%clk 0:01:46]} 40...
Qa4 {[%clk 0:03:15.8]} 41. Bxb5 {[%clk 0:01:40.1]} 41... Qa3 {[%clk 0:03:14.7]}
42. Bd3 {[%clk 0:01:36.5]} 42... a4 {[%clk 0:03:13]} 43. f5 {[%clk 0:01:33.2]}
43... Kd7 {[%clk 0:03:11.3]} 44. fxe6+ {[%clk 0:01:32.2]} 44... Kxe6 {[%clk
0:03:10]} 45. Bf5+ {[%clk 0:01:29.2]} 45... Ke7 {[%clk 0:03:09.3]} 46. g5 {[%clk
0:01:27.6]} 46... f6 {[%clk 0:03:07.2]} 47. g6 {[%clk 0:01:25.4]} 47... Kf8
{[%clk 0:02:59.2]} 48. Bc2 {[%clk 0:01:24.3]} 48... Kg7 {[%clk 0:02:58.2]} 49.
Qb5 {[%clk 0:01:14.5]} 49... Qa1 {[%clk 0:02:44.9]} 50. Qd7+ {[%clk 0:01:10.7]}
50... Kh6 {[%clk 0:02:44]} 51. Qh7+ {[%clk 0:01:08.9]} 51... Kg5 {[%clk
0:02:42.6]} 52. g7 {[%clk 0:01:07.8]} 52... Kg4 {[%clk 0:02:29.1]} 53. g8=Q+
{[%clk 0:01:06]} 53... Kf3 {[%clk 0:02:28.6]} 54. Qf5# {[%clk 0:01:03.6]} 1-0

[Event "Live Chess"]
[Site "Chess.com"]
[Date "2024.06.01"]
[Round "-"]
[White "Stanbad1"]
[Black "StoreySniper"]
[Result "1-0"]
[WhiteElo "2686"]
[BlackElo "2557"]
[TimeControl "300"]
[EndTime "11:20:44 PDT"]
[Termination "Stanbad1 won by resignation"]

1. d4 {[%clk 0:04:58]} 1... g6 {[%clk 0:04:59.1]} 2. Nc3 {[%clk 0:04:55.6]} 2...
Bg7 {[%clk 0:04:58.5]} 3. e4 {[%clk 0:04:55.2]} 3... c5 {[%clk 0:04:58]} 4. Be3
{[%clk 0:04:54.5]} 4... cxd4 {[%clk 0:04:56.2]} 5. Bxd4 {[%clk 0:04:54.4]} 5...
Nf6 {[%clk 0:04:54.2]} 6. f3 {[%clk 0:04:53.4]} 6... Nc6 {[%clk 0:04:53.1]} 7.
Be3 {[%clk 0:04:52.3]} 7... d6 {[%clk 0:04:52.1]} 8. Qd2 {[%clk 0:04:51.6]} 8...
O-O {[%clk 0:04:51.3]} 9. Bc4 {[%clk 0:04:50.7]} 9... Bd7 {[%clk 0:04:48.3]} 10.
Nge2 {[%clk 0:04:49.1]} 10... Rc8 {[%clk 0:04:47]} 11. Bb3 {[%clk 0:04:46.5]}
11... Ne5 {[%clk 0:04:42]} 12. O-O {[%clk 0:04:45.1]} 12... a6 {[%clk
0:04:40.5]} 13. Nf4 {[%clk 0:04:43.8]} 13... Nc4 {[%clk 0:04:38.7]} 14. Bxc4
{[%clk 0:04:43.1]} 14... Rxc4 {[%clk 0:04:38.6]} 15. Qf2 {[%clk 0:04:42.6]}
15... Be6 {[%clk 0:04:32]} 16. Rad1 {[%clk 0:04:40.6]} 16... Qa5 {[%clk
0:04:29.8]} 17. Bd4 {[%clk 0:04:37.1]} 17... Rxd4 {[%clk 0:04:12.2]} 18. Rxd4
{[%clk 0:04:32]} 18... Nd7 {[%clk 0:03:48.7]} 19. Ra4 {[%clk 0:04:25.2]} 19...
Qe5 {[%clk 0:03:42.6]} 20. Ncd5 {[%clk 0:04:24.1]} 20... Qxb2 {[%clk 0:03:30.9]}
21. Rb4 {[%clk 0:04:21.8]} 21... Qxa2 {[%clk 0:03:28.2]} 22. Rxb7 {[%clk
0:04:20.8]} 22... Bxd5 {[%clk 0:03:18.7]} 23. Nxd5 {[%clk 0:04:18.5]} 23... Nc5
{[%clk 0:02:59.1]} 24. Nxe7+ {[%clk 0:04:12.4]} 24... Kh8 {[%clk 0:02:57.6]} 25.
Rb4 {[%clk 0:04:11.8]} 25... a5 {[%clk 0:02:45.8]} 26. Rd4 {[%clk 0:04:09.5]}
26... Qe6 {[%clk 0:02:33.2]} 27. Nd5 {[%clk 0:04:06.7]} 27... Bxd4 {[%clk
0:02:26.8]} 28. Qxd4+ {[%clk 0:04:04.7]} 28... Qe5 {[%clk 0:02:26.1]} 29. Qc4
{[%clk 0:03:57.3]} 29... Ne6 {[%clk 0:02:11.4]} 30. c3 {[%clk 0:03:54.4]} 30...
Nf4 {[%clk 0:02:04.3]} 31. Ne3 {[%clk 0:03:45.9]} 31... Qc5 {[%clk 0:01:58.1]}
32. Qxc5 {[%clk 0:03:39.2]} 32... dxc5 {[%clk 0:01:57.4]} 33. Ra1 {[%clk
0:03:38.9]} 33... Ra8 {[%clk 0:01:55.3]} 34. Ra3 {[%clk 0:03:37.2]} 34... Nd3
{[%clk 0:01:35.5]} 35. Nc4 {[%clk 0:03:34.6]} 35... a4 {[%clk 0:01:33.3]} 36.
Kf1 {[%clk 0:03:28.7]} 36... Rb8 {[%clk 0:01:28.2]} 37. Rxa4 {[%clk 0:03:14.2]}
37... Rb1+ {[%clk 0:01:26.8]} 38. Ke2 {[%clk 0:03:12.6]} 38... Nf4+ {[%clk
0:01:25.9]} 39. Kf2 {[%clk 0:03:11.6]} 39... Rc1 {[%clk 0:01:24.2]} 40. g3
{[%clk 0:03:07.1]} 40... Rc2+ {[%clk 0:01:16.2]} 41. Ke3 {[%clk 0:02:48]} 41...
Ng2+ {[%clk 0:01:15.4]} 42. Kd3 {[%clk 0:02:47.4]} 42... Ne1+ {[%clk 0:01:14.5]}
43. Ke3 {[%clk 0:02:46.8]} 43... Rxc3+ {[%clk 0:01:09.7]} 44. Kd2 {[%clk
0:02:43.8]} 44... Rxc4 {[%clk 0:01:03.5]} 45. Rxc4 {[%clk 0:02:41.5]} 45...
Nxf3+ {[%clk 0:01:03.1]} 46. Ke3 {[%clk 0:02:41]} 46... Nxh2 {[%clk 0:01:02.3]}
47. Rxc5 {[%clk 0:02:40.1]} 47... h5 {[%clk 0:00:55]} 48. Kf4 {[%clk 0:02:38.3]}
48... Kg7 {[%clk 0:00:54.3]} 49. e5 {[%clk 0:02:37.3]} 49... Ng4 {[%clk
0:00:51.2]} 50. Rc7 {[%clk 0:02:35.5]} 50... Kg8 {[%clk 0:00:50.4]} 51. e6
{[%clk 0:02:32.9]} 51... fxe6 {[%clk 0:00:44]} 52. Kg5 {[%clk 0:02:32]} 52...
Kf8 {[%clk 0:00:36]} 53. Kxg6 {[%clk 0:02:31]} 53... Ne3 {[%clk 0:00:20.1]} 54.
Kxh5 {[%clk 0:02:28.7]} 54... Nd5 {[%clk 0:00:18.9]} 55. Ra7 {[%clk 0:02:26.9]}
55... e5 {[%clk 0:00:17.9]} 56. Ra5 {[%clk 0:02:22.6]} 56... Nf6+ {[%clk
0:00:16.3]} 57. Kg6 {[%clk 0:02:21.1]} 57... Nd7 {[%clk 0:00:11.8]} 58. Kf5
{[%clk 0:02:16.9]} 58... Ke7 {[%clk 0:00:09.7]} 59. g4 {[%clk 0:02:16.3]} 59...
Kf7 {[%clk 0:00:07.3]} 60. g5 {[%clk 0:02:14.3]} 1-0